Cogmind - Beta 13 @@@ ROGUE MODE // 2024.04.07 @ 13:32:19 Player: darki Result: Destroyed by G-73 Enforcer with Phase Gun Performance ------------- Evolutions (9) 4500 Regions Visited (16) 3200 Robots Destroyed (115) 575 Value Destroyed (2986) 2986 Prototype IDs (17) 340 Alien Tech Used (3) 600 Bonus (8802) 8802 TOTAL SCORE: 21003 Bonus ------- High Alert Combat Kills 95 Follower Combat Kills 1863 Entered DSFs 500 Network Hubs Disabled 400 Built Enhanced Grunts 300 A7 Reached Mainframe 300 Met R17 at Cetus 500 Used Core Reset Matrix 3000 Met Sigix 2000 Friendly Fire -156 Cogmind --------- Core Integrity 0/1600 Matter 6/300 Energy 100/100 System Corruption 2% Temperature Cool (9) Movement Core (300) Ox5 Location -1/Access Parts ------- > --- POWER (2) -------- (None) > --- PROPULSION (6) --- (None) > --- UTILITY (15) ----- Improved Melee Analysis Suite Experimental Core Analyzer > --- WEAPON (2) ------- Tactical Quantum Warhead > --- INVENTORY (5) ---- Subatomic Replicator Smartbomb Launcher Advanced Datajack Peak State ------------ > --- POWER ------------ Light Angular Momentum Engine Light Angular Momentum Engine > --- PROPULSION ------- Q-thruster Q-thruster Q-thruster > --- UTILITY ---------- Gravity Neutralizer Enhanced Optical Array Advanced Sensor Array Centrium Medium Armor Plating Phase Redirector Hacking Suite Hacking Suite Hacking Suite Improved Hacking Suite Improved Hacking Suite Advanced Hacking Suite System Shield Improved System Shield Improved System Shield > --- WEAPON ----------- Advanced Datajack Powered Hammer > --- INVENTORY -------- Subatomic Replicator Smartbomb Launcher Core Stripper [Rating: 127] Favorites ----------- Power Light Angular Momentum Engine Engine Light Angular Momentum Engine Power Core Micro Nuclear Core Propulsion Improved Treads Treads Improved Treads Leg Aluminum Leg Hover Unit Gravmag System Flight Unit Improved Flight Unit Utility Hacking Suite Device Gravity Neutralizer Storage Small Storage Unit Processor Advanced Melee Analysis Suite Hackware Hacking Suite Protection Centrium Medium Armor Plating Artifact Phase Redirector Weapon Flail Energy Gun Pulse Rifle Energy Cannon Advanced Beam Cannon Ballistic Gun Light Assault Rifle Launcher Rocket Launcher Impact Weapon Flail Slashing Weapon Ripper Special Melee Weapon Advanced Datajack Build | -11 -10 -9 -8 -7 -6 -6 -6 -6 -6 -5 -4 -3 -3 -2 -2 -1 ------- Run | Yrd Mat Mat Mat Fac Fac Ext Cet Arc Hub Fac Fac Res Qua Res DSF Acc Slots Evolved 18 | . . 2 2 2 2 . . . . 2 2 2 . 2 . 2 Power 1 | . . . . . . . . . . . . 1 . . . . Propulsion 4 | . . . . . . . . . . . . 1 . 1 . 2 Utility 13 | . . 2 2 2 2 . . . . 2 2 . . 1 . . Weapon . | . . . . . . . . . . . . . . . . . Parts Attached 175 | . 11 26 7 10 28 18 7 16 . 20 6 1 17 . 1 7 Power 13 | . 3 2 . . 1 3 1 1 . 1 . . 1 . . . Engine 10 | . 3 2 . . . 2 1 . . 1 . . 1 . . . Core 3 | . . . . . 1 1 . 1 . . . . . . . . Reactor . | . . . . . . . . . . . . . . . . . Propulsion 27 | . 4 3 2 2 4 1 . 4 . 2 . . 4 . . 1 Treads 9 | . 4 3 2 . . . . . . . . . . . . . Leg . | . . . . . . . . . . . . . . . . . Wheel . | . . . . . . . . . . . . . . . . . Hover 9 | . . . . 2 . . . 4 . 2 . . . . . 1 Flight 9 | . . . . . 4 1 . . . . . . 4 . . . Utility 77 | . 3 11 4 5 18 5 4 9 . 9 2 . 5 . . 2 Device 25 | . 2 7 1 1 4 . 1 3 . 3 . . 3 . . . Storage . | . . . . . . . . . . . . . . . . . Processor 19 | . . 3 . 1 8 1 1 . . 2 1 . . . . 2 Hackware 18 | . . 1 3 3 4 . . 4 . 2 1 . . . . . Protection 14 | . 1 . . . 2 4 2 2 . 2 . . 1 . . . Artifact 1 | . . . . . . . . . . . . . 1 . . . Weapon 58 | . 1 10 1 3 5 9 2 2 . 8 4 1 7 . 1 4 Energy Gun 10 | . 1 4 . . . . . 1 . 3 1 . . . . . Energy Cannon 1 | . . 1 . . . . . . . . . . . . . . Ballistic Gun 3 | . . 2 . . . 1 . . . . . . . . . . Ballistic Cannon . | . . . . . . . . . . . . . . . . . Launcher 16 | . . . 1 1 3 2 . . . 2 . . 2 . 1 4 Special Weapon . | . . . . . . . . . . . . . . . . . Impact Weapon 17 | . . 3 . 2 2 1 1 . . 3 1 1 3 . . . Slashing Weapon 6 | . . . . . . 5 1 . . . . . . . . . Piercing Weapon . | . . . . . . . . . . . . . . . . . Special Melee Weapon 5 | . . . . . . . . 1 . . 2 . 2 . . . Unidentified Prototypes 17 | . . 4 . 1 4 . 1 . . 1 . . 4 . . 2 Parts Lost 39 | . 4 2 2 7 3 1 1 1 . 1 . . 11 . 6 . Power 4 | . 2 . 1 . . 1 . . . . . . . . . . Propulsion 10 | . 1 2 1 2 . . . 1 . 1 . . 2 . . . Utility 21 | . . . . 4 3 . . . . . . . 8 . 6 . Weapon 4 | . 1 . . 1 . . 1 . . . . . 1 . . . Highest Loss Streak 8 | . 1 1 2 7 2 1 1 1 . 1 . . 8 . 6 . To Critical Strikes 1 | . . . . 1 . . . . . . . . . . . . Average Slot Usage (%) 84 | . 94 97 72 58 74 89 87 86 100 91 98 87 89 43 21 4 Engine 6 | . 13 11 5 . . 3 6 5 . 3 5 4 6 . . . Treads 9 | . 21 21 12 . . . . . . . . . . . . . Leg 1 | . 6 . . . . . . . . . . . . . . . Hover 1 | . . . . 2 . . . 3 13 11 10 9 2 . . 1 Flight 3 | . . . . . 11 13 13 4 . . . . 9 8 3 . Device 12 | . 11 20 15 6 6 13 13 8 13 11 10 9 11 8 3 . Storage 5 | . 14 11 5 . . . . . . . . . . . . . Processor 8 | . . 10 . 2 20 17 14 13 6 6 10 9 4 4 2 3 Hackware 16 | . . . 16 39 23 20 20 31 40 44 47 42 39 17 9 . Protection 3 | . . . . . 2 13 14 10 6 5 5 4 4 4 1 . Energy Gun 7 | . 22 12 . . . . . 5 6 . . . . . . . Impact Weapon 3 | . . 7 14 6 4 1 . . . 3 4 2 2 . . . Naked Turns 94 | . . . . . . . . . . . . . . . 19 75 Heaviest Build 33 | 12 14 32 26 3 18 26 22 28 28 33 21 21 33 6 6 . Greatest Support 46 | 20 46 46 46 16 23 23 22 30 30 30 30 30 36 16 16 26 Greatest Overweight (x) 1 | . 1 . . . . 1 . 1 . 1 . . 1 . . . Average Overweight (x) . | . . . . . . . . . . . . . . . . . Largest Inventory Capacity 8 | . 8 8 8 5 5 5 5 5 5 5 5 5 5 5 5 5 Average Capacity 6 | . 8 8 6 5 5 5 5 5 5 5 5 5 5 5 5 5 Most Carried 8 | . 8 8 8 3 5 5 5 5 5 5 5 4 5 4 5 5 Average Carried 5 | . 7 6 5 1 2 4 4 4 5 4 3 3 4 4 4 4 Final Capacity 8 | 8 8 8 5 5 5 5 5 5 5 5 5 5 5 5 5 5 Final Carried 8 | 6 8 8 4 2 5 5 5 5 5 5 4 3 4 4 5 4 Class Distribution -------------------- 37% | Mutant 27% | Hacker-Mutant 18% | Wizard-Mutant 7% | Gladiator 3% | Wizard-Scout Dominant Class ---------------- Mutant | -10/Materials Mutant | -9/Materials Hacker-Gladiator | -8/Materials Hacker-Mutant | -7/Factory Hacker-Mutant | -6/Factory Hacker-Mutant | -6/Extension Hacker-Mutant | -6/Cetus Hacker-Mutant | -6/Archives Wizard-Mutant | -6/Hub_04(d) Wizard-Mutant | -5/Factory Wizard-Scout | -4/Factory Wizard-Scout | -3/Research Wizard-Mutant | -3/Quarantine Wizard-Mutant | -2/Research Mutant | -2/DSF Mutant | -1/Access Resources | -11 -10 -9 -8 -7 -6 -6 -6 -6 -6 -5 -4 -3 -3 -2 -2 -1 ----------- Run | Yrd Mat Mat Mat Fac Fac Ext Cet Arc Hub Fac Fac Res Qua Res DSF Acc Matter Collected 2415 | 182 212 340 88 18 345 510 96 181 . 40 . . 156 . 34 213 Remotely . | . . . . . . . . . . . . . . . . . Salvage Created 3807 | . 568 1094 370 23 821 86 . 365 . 90 . . 156 . 34 200 Parts 197 | . 25 98 21 . 19 . . 19 . 7 . . . . . 8 Haulers Intercepted 12 | . 2 6 1 . 3 . . . . . . . . . . . Recyclers Shooed 4 | . 1 . 1 . . 1 . . . . . . 1 . . . Parts Field Recycled . | . . . . . . . . . . . . . . . . . Retrieved Matter . | . . . . . . . . . . . . . . . . . Parts Self-Destructed . | . . . . . . . . . . . . . . . . . Prevented . | . . . . . . . . . . . . . . . . . Kills | -11 -10 -9 -8 -7 -6 -6 -6 -6 -6 -5 -4 -3 -3 -2 -2 -1 ------- Run | Yrd Mat Mat Mat Fac Fac Ext Cet Arc Hub Fac Fac Res Qua Res DSF Acc Combat Hostiles Destroyed 68 | . 13 27 5 1 6 1 . . . 8 . . . . . 7 Melee 9 | . . 5 2 . 1 1 . . . . . . . . . . Guns 35 | . 13 22 . . . . . . . . . . . . . . AOE 20 | . . . 3 . 2 . . . . 8 . . . . . 7 Classes Destroyed 13 | . 7 2 1 . 2 . . 1 . . . . . . . . Worker 2 | . . . . . 1 . . . . 1 . . . . . . Builder 4 | . 1 2 . . . . . . . . . . . . . 1 Tunneler 1 | . 1 . . . . . . . . . . . . . . . Hauler 12 | . 2 6 1 . 3 . . . . . . . . . . . Recycler 5 | . . 1 2 . 1 . . . . . . . 1 . . . Operator 15 | . 1 2 1 . 2 . . 9 . . . . . . . . Watcher 7 | . 1 . 1 . 4 1 . . . . . . . . . . Swarmer 40 | . 6 17 . 1 3 . . . . 8 . . . . . 5 Grunt 17 | . 7 4 2 . 2 . . . . . . . . . . 2 Sentry 9 | . . 6 2 . . 1 . . . . . . . . . . Hunter 1 | . . . 1 . . . . . . . . . . . . . Programmer 1 | . . . . . 1 . . . . . . . . . . . Savage 1 | . . . . . . . . 1 . . . . . . . . Best Kill Streak 10 | . 5 10 5 1 5 1 . 2 . 5 . . 1 . . 6 Combat Bots Only 9 | . 5 9 3 1 3 1 . . . 4 . . . . . 5 Max Kills in Single Turn 4 | . 2 2 2 1 2 1 . 1 . 4 . . 1 . . 3 Gunslinging 1 | . . 1 . . . . . . . . . . . . . . Exploded 4 | . . . 2 . 2 . . . . 4 . . . . . 3 Melee 1 | . . 1 1 . 1 1 . . . . . . . . . . Uniques/NPCs Destroyed . | . . . . . . . . . . . . . . . . . Combat | -11 -10 -9 -8 -7 -6 -6 -6 -6 -6 -5 -4 -3 -3 -2 -2 -1 -------- Run | Yrd Mat Mat Mat Fac Fac Ext Cet Arc Hub Fac Fac Res Qua Res DSF Acc Hostile Shots Fired 851 | . 86 157 75 95 91 49 21 3 . 26 2 . 49 . 29 168 Missed 322 | . 17 37 23 49 36 29 14 2 . 8 2 . 23 . 9 73 Damage Taken 9030 | . 807 1292 801 553 815 199 461 22 . 311 . . 1044 . 818 1907 Core 3873 | . 235 208 237 340 297 73 32 . . . . . 240 . 597 1614 Absorbed by Shields 29 | . . . . . . . 29 . . . . . . . . . Redirected to Shielding 37 | . . . . . . 8 22 7 . . . . . . . . Ignored by Resistances 8 | . . . . . . . . . . 8 . . . . . . Core Remaining (%) 65 | 100 6 48 56 51 . . . . 52 100 100 . 81 . 58 . Volleys Fired 288 | . 84 71 3 . 1 12 . 102 . 6 . . 3 . 1 5 Largest 2 | . 2 2 1 . 1 1 . 1 . 1 . . 1 . 1 1 Hottest 126 | . 90 126 33 . 36 45 . 81 . 81 . . 46 . 46 46 Shots Fired 429 | . 155 142 3 . 1 11 . 102 . 6 . . 3 . 1 5 Gun 410 | . 155 142 . . . 8 . 102 . 3 . . . . . . Cannon . | . . . . . . . . . . . . . . . . . Launcher 19 | . . . 3 . 1 3 . . . 3 . . 3 . 1 5 Special . | . . . . . . . . . . . . . . . . . Kinetic 62 | . 24 30 . . . 8 . . . . . . . . . . Thermal 348 | . 131 112 . . . . . 102 . 3 . . . . . . Explosive 19 | . . . 3 . 1 3 . . . 3 . . 3 . 1 5 Electromagnetic . | . . . . . . . . . . . . . . . . . Robot Hit Streak 17 | . 17 7 5 . . 4 . 7 . 3 . . . . . 6 Robot Miss Streak 7 | . 7 4 1 . . 1 . 7 . 2 . . . . . . Penetration Max . | . . . . . . . . . . . . . . . . . Secondary Targets 9 | . 3 6 . . . . . . . . . . . . . . Max Gunslinging Chain 1 | . 1 1 . . . . . . . . . . . . . . Shots Hit Robots 336 | . 99 104 21 5 21 14 4 59 2 3 . . 1 . . 3 Core Hits 159 | . 32 41 16 . 9 4 2 28 . 9 . . . . . 18 Critical Kills 5 | . . 2 2 . . 1 . . . . . . . . . . Critical Parts Destroyed 8 | . . 2 1 1 4 . . . . . . . . . . . Critical Strikes 31 | . 7 10 3 1 4 3 . 3 . . . . . . . . Burn 15 | . 7 5 . . . . . 3 . . . . . . . . Destroy 1 | . . 1 . . . . . . . . . . . . . . Smash 13 | . . 4 3 1 4 1 . . . . . . . . . . Sever 2 | . . . . . . 2 . . . . . . . . . . Melee Attacks 179 | . . 37 27 8 43 9 8 . 2 17 7 1 20 . . . Impact 168 | . . 37 27 8 43 6 3 . . 17 7 1 19 . . . Slashing 8 | . . . . . . 3 5 . . . . . . . . . Piercing . | . . . . . . . . . . . . . . . . . Sneak Attacks 12 | . . 1 3 . 5 . . . 2 . . . 1 . . . Combat Hostiles . | . . . . . . . . . . . . . . . . . Follow-up Attacks 17 | . . 10 7 . . . . . . . . . . . . . Damage Inflicted 10734 | . 1197 2091 1173 187 1777 357 198 1450 . 784 . . 131 . 119 1270 Guns 4190 | . 1197 1419 . . . 93 . 1450 . 31 . . . . . . Cannons . | . . . . . . . . . . . . . . . . . Explosions 2849 | . . . 408 . 363 . . . . 753 . . . . 62 1263 Melee 3599 | . . 672 765 187 1414 264 198 . . . . . 99 . . . Ramming 96 | . . . . . . . . . . . . . 32 . 57 7 Kinetic 515 | . 150 272 . . . 93 . . . . . . . . . . Thermal 3990 | . 1047 1147 . . 315 . . 1450 . 31 . . . . . . Explosive 2534 | . . . 408 . 48 . . . . 753 . . . . 62 1263 Electromagnetic . | . . . . . . . . . . . . . . . . . Impact 3322 | . . 672 765 187 1414 185 . . . . . . 99 . . . Slashing 277 | . . . . . . 79 198 . . . . . . . . . Piercing . | . . . . . . . . . . . . . . . . . Highest Corruption 26 | . . . . . 8 8 8 8 . . . . 26 . 24 2 Average Corruption 5 | . . . . . 2 8 8 4 . . . . 4 . 16 1 Corruption Purged 8 | . . . . . . . . 8 . . . . . . . . Corruption Blocked . | . . . . . . . . . . . . . . . . . Effects 57 | . . . . . 4 22 8 13 . . . . 6 . 3 1 Message Errors 21 | . . . . . 3 6 2 6 . . . . 2 . 2 . Matter Fused 14 | . . . . . . 9 3 2 . . . . . . . . Heat Flow Errors 5 | . . . . . . 2 2 . . . . . 1 . . . Energy Discharges 8 | . . . . . 1 2 . 3 . . . . 2 . . . Parts Rejected 1 | . . . . . . . . 1 . . . . . . . . Data Loss (minor) 3 | . . . . . . . . 1 . . . . 1 . . 1 Data Loss (major) 1 | . . . . . . . 1 . . . . . . . . . Alerts 2 | . . . . . . 2 . . . . . . . . . . Misdirections 1 | . . . . . . . . . . . . . . . 1 . Weapon Failures 1 | . . . . . . 1 . . . . . . . . . . Overload Shots . | . . . . . . . . . . . . . . . . . Overflow Damage 1211 | . . 70 148 60 729 10 . . . 70 . . 82 . . 42 Projectiles . | . . . . . . . . . . . . . . . . . Explosions 195 | . . . 8 . 75 . . . . 70 . . . . . 42 Melee 1016 | . . 70 140 60 654 10 . . . . . . 82 . . . Knockbacks 11 | . . . 3 2 5 1 . . . . . . . . . . Impact 11 | . . . 3 2 5 1 . . . . . . . . . . Kinetic . | . . . . . . . . . . . . . . . . . Secondary . | . . . . . . . . . . . . . . . . . Self-Inflicted Damage 101 | . . . 28 . . . . . . . . . 14 . 57 2 Shots 1 | . . . 1 . . . . . . . . . . . . . Rammed 9 | . . . . . . . . . . . . . 4 . . 5 Targets Rammed 9 | . . . . . . . . . . . . . 4 . . 5 Kicked . | . . . . . . . . . . . . . . . . . Crushed . | . . . . . . . . . . . . . . . . . Highest Temperature 428 | . 212 428 7 . 14 210 211 325 . 103 . . 165 . . 2 Average Temperature 106 | . 75 114 7 . 8 112 116 107 . 51 . . 85 . . 2 Received Heat Transfer 1373 | . 351 261 225 36 186 69 37 . . 12 . . 79 . . 117 Effects 7 | . 2 3 . . . . . 2 . . . . . . . . Energy Bleed 4 | . . 2 . . . . . 2 . . . . . . . . Interference 3 | . 2 1 . . . . . . . . . . . . . . Siege Activations . | . . . . . . . . . . . . . . . . . Robots Corrupted . | . . . . . . . . . . . . . . . . . Combat Hostiles . | . . . . . . . . . . . . . . . . . Parts Fried 26 | . . 1 1 1 17 3 . . . . . . 3 . . . Impact Corruptions 35 | . . 4 4 3 22 1 . . . . . . 1 . . . Robots Melted . | . . . . . . . . . . . . . . . . . Combat Hostiles . | . . . . . . . . . . . . . . . . . Parts Melted 20 | . 6 7 . . . 1 . 6 . . . . . . . . Heat Transferred 8861 | . 3246 2849 . . 250 . . 2479 . 37 . . . . . . Parts Sabotaged . | . . . . . . . . . . . . . . . . . Parts Stolen . | . . . . . . . . . . . . . . . . . Parts Stripped . | . . . . . . . . . . . . . . . . . Power Chain Reactions 2 | . . . . . 2 . . . . . . . . . . . Alert | -11 -10 -9 -8 -7 -6 -6 -6 -6 -6 -5 -4 -3 -3 -2 -2 -1 ------- Run | Yrd Mat Mat Mat Fac Fac Ext Cet Arc Hub Fac Fac Res Qua Res DSF Acc Peak Influence 555 | . 224 488 490 340 543 389 555 492 234 310 73 68 271 49 111 525 Initial 222 | . . . 206 182 158 197 107 222 123 114 14 38 38 39 36 39 Average 201 | . 53 233 314 222 246 254 324 374 148 168 22 56 128 44 61 229 Maximum Alert Level 2 | . 1 2 2 1 2 1 2 2 1 1 . . 1 . . 2 Low Security (%) 54 | . 99 54 . 57 40 25 49 . 93 62 100 100 76 100 100 42 Level 1 30 | . . 15 83 42 46 74 3 55 6 37 . . 23 . . 43 Level 2 14 | . . 30 16 . 13 . 47 44 . . . . . . . 14 Level 3 . | . . . . . . . . . . . . . . . . . Level 4 . | . . . . . . . . . . . . . . . . . Level 5 . | . . . . . . . . . . . . . . . . . High Security . | . . . . . . . . . . . . . . . . . Max Security . | . . . . . . . . . . . . . . . . . Squads Dispatched 23 | . 2 2 2 . 8 1 . . 1 1 . . 2 . 1 3 Investigation 8 | . . . . . 5 1 . . 1 . . . . . . 1 Extermination 2 | . . . . . 1 . . . . . . . 1 . . . Reinforcement 12 | . 2 2 2 . 2 . . . . 1 . . 1 . 1 1 Assault . | . . . . . . . . . . . . . . . . . Garrison 1 | . . . . . . . . . . . . . . . . 1 Intercept . | . . . . . . . . . . . . . . . . . Searches Triggered 2 | . . . . . 1 . . . . . . . . . . 1 Construction Impeded 2 | . . . . . . . . . . 1 . . . . . 1 Haulers Reinforced 1 | . . . . . 1 . . . . . . . . . . . Active Scanning Responses . | . . . . . . . . . . . . . . . . . Cargo Convoy Interrupts . | . . . . . . . . . . . . . . . . . Stealth | -11 -10 -9 -8 -7 -6 -6 -6 -6 -6 -5 -4 -3 -3 -2 -2 -1 --------- Run | Yrd Mat Mat Mat Fac Fac Ext Cet Arc Hub Fac Fac Res Qua Res DSF Acc Distress Signals 15 | . 4 . 4 2 1 . 2 . . . . . 1 . . 1 Communications Jammed . | . . . . . . . . . . . . . . . . . Distress Signals . | . . . . . . . . . . . . . . . . . Times Spotted 299 | . 23 38 22 16 35 18 18 40 . 18 6 1 27 . 5 32 Peak Tracking Total 19 | . 7 8 16 9 9 6 7 1 . 5 4 1 19 . 6 7 Tactical Retreats 30 | . 1 . 2 3 8 1 1 . . 1 1 . 3 . 1 8 Traps | -11 -10 -9 -8 -7 -6 -6 -6 -6 -6 -5 -4 -3 -3 -2 -2 -1 ------- Run | Yrd Mat Mat Mat Fac Fac Ext Cet Arc Hub Fac Fac Res Qua Res DSF Acc Traps Triggered 8 | . . . . 2 . 3 . . . 1 . . 1 . . 1 Indirectly . | . . . . . . . . . . . . . . . . . Trap Hack Attempts . | . . . . . . . . . . . . . . . . . Triggered . | . . . . . . . . . . . . . . . . . Disarmed . | . . . . . . . . . . . . . . . . . Reprogrammed . | . . . . . . . . . . . . . . . . . Reused . | . . . . . . . . . . . . . . . . . Traps Extracted . | . . . . . . . . . . . . . . . . . Installed . | . . . . . . . . . . . . . . . . . Triggered 2 | . . . . . 2 . . . . . . . . . . . Machines | -11 -10 -9 -8 -7 -6 -6 -6 -6 -6 -5 -4 -3 -3 -2 -2 -1 ---------- Run | Yrd Mat Mat Mat Fac Fac Ext Cet Arc Hub Fac Fac Res Qua Res DSF Acc Machines Disabled 21 | . . . 1 1 4 . 1 4 . 1 . 1 6 . 1 1 Max in Single Turn 4 | . . . 1 1 4 . 1 1 . 1 . 1 2 . 1 1 Garrison Access 3 | . . . . . 1 . . . . 1 . . 1 . . . Network Hub 2 | . . . . . . . . . 2 . . . . . . . Machines Repaired . | . . . . . . . . . . . . . . . . . Machines Dismantled . | . . . . . . . . . . . . . . . . . Machines Sabotaged 1 | . . . . . . . . . 1 . . . . . . . Overloaded Fab Kills 7 | . . . . . 7 . . . . . . . . . . . Hacking | -11 -10 -9 -8 -7 -6 -6 -6 -6 -6 -5 -4 -3 -3 -2 -2 -1 --------- Run | Yrd Mat Mat Mat Fac Fac Ext Cet Arc Hub Fac Fac Res Qua Res DSF Acc Machines Accessed 52 | . 3 4 3 . 14 10 1 . 1 5 1 1 6 2 . 1 Terminals 42 | . 2 4 3 . 9 10 1 . 1 3 1 1 5 2 . . Fabricators 5 | . . . . . 4 . . . . 1 . . . . . . Repair Stations . | . . . . . . . . . . . . . . . . . Recycling Units 1 | . 1 . . . . . . . . . . . . . . . Scanalyzers . | . . . . . . . . . . . . . . . . . Garrison Access 4 | . . . . . 1 . . . . 1 . . 1 . . 1 Total Hacks 214 | . 7 6 12 . 59 37 5 . 1 31 9 12 26 8 . 1 Successful 143 | . 5 2 8 . 33 21 . . 1 28 9 12 21 3 . . Failed 69 | . 2 4 4 . 25 15 5 . . 3 . . 5 5 . 1 Catastrophic 7 | . . 2 2 . 2 . . . . 1 . . . . . . Database Lockouts 2 | . . . . . 1 1 . . . . . . . . . . Manual 156 | . 4 5 11 . 46 24 1 . 1 23 9 11 16 5 . . Terminals 185 | . 6 6 12 . 46 37 5 . 1 20 9 12 23 8 . . Fabricators 16 | . . . . . 12 . . . . 4 . . . . . . Repair Stations . | . . . . . . . . . . . . . . . . . Recycling Units 1 | . 1 . . . . . . . . . . . . . . . Scanalyzers . | . . . . . . . . . . . . . . . . . Garrison Access 12 | . . . . . 1 . . . . 7 . . 3 . . 1 Terminal Hacks 80 | . 1 2 3 . 12 17 . . . 10 7 10 16 2 . . Record 3 | . . . . . . . . . . . . . 3 . . . Part Schematic 4 | . . . 1 . . 1 . . . 1 . . 1 . . . Robot Schematic 1 | . . . . . . . . . . . . . 1 . . . Robot Analysis 17 | . . . . . 2 7 . . . 1 3 . 4 . . . Prototype ID Bank 1 | . . . . . . . . . . 1 . . . . . . Open Door 5 | . . . . . . 4 . . . . . . 1 . . . Open DSF 1 | . . . . . . . . . . . . . . 1 . . Level Access Points 7 | . . . 1 . 1 . . . . 1 1 1 1 1 . . Branch Access Points 7 | . 1 1 . . 1 . . . . 1 1 1 1 . . . Machine Index 4 | . . . . . . . . . . 1 1 1 1 . . . Terminal Index 2 | . . . . . 1 1 . . . . . . . . . . Repair Station Index 1 | . . . . . 1 . . . . . . . . . . . Alert Level 1 | . . . . . 1 . . . . . . . . . . . Unreport Threat 9 | . . . 1 . 3 1 . . . 4 . . . . . . Locate Traps 1 | . . . . . . 1 . . . . . . . . . . Security Status 2 | . . . . . . . . . . . . 1 1 . . . Surveillance Status 3 | . . . . . . . . . . . . 2 1 . . . Patrol Status 1 | . . . . . . . . . . . . 1 . . . . Assault Status 1 | . . . . . . . . . . . . 1 . . . . Garrison Status 1 | . . . . . . . . . . . . 1 . . . . Recall Investigation 2 | . . . . . 1 1 . . . . . . . . . . Hauler Manifests 1 | . . . . . . 1 . . . . . . . . . . Registered Components 2 | . . 1 . . . . . . . . 1 . . . . . Zone Layout 3 | . . . . . 1 . . . . . . 1 1 . . . Fabricator Hacks 6 | . . . . . 5 . . . . 1 . . . . . . Network Status 2 | . . . . . 1 . . . . 1 . . . . . . Load Schematic 2 | . . . . . 2 . . . . . . . . . . . Build 2 | . . . . . 2 . . . . . . . . . . . Repair Station Hacks . | . . . . . . . . . . . . . . . . . Recycling Unit Hacks 1 | . 1 . . . . . . . . . . . . . . . Retrieve Components 1 | . 1 . . . . . . . . . . . . . . . Scanalyzer . | . . . . . . . . . . . . . . . . . Garrison Access Hacks 4 | . . . . . 1 . . . . 2 . . 1 . . . Seal Access 3 | . . . . . 1 . . . . 1 . . 1 . . . Coupler Status 1 | . . . . . . . . . . 1 . . . . . . Unauthorized Hacks 52 | . 3 . 5 . 15 4 . . 1 15 2 2 4 1 . . Terminals 38 | . 3 . 5 . 11 4 . . 1 7 2 2 2 1 . . Track 4 | . 1 . 1 . 1 . . . . 1 . . . . . . Assimilate 4 | . . . . . 1 . . . . 2 . 1 . . . . Botnet 22 | . 2 . 3 . 7 3 . . . 3 1 1 1 1 . . Disrupt 3 | . . . . . 1 1 . . . . . . 1 . . . Operators 4 | . . . 1 . 1 . . . . 1 1 . . . . . Sabotage 1 | . . . . . . . . . 1 . . . . . . . Fabricators 7 | . . . . . 4 . . . . 3 . . . . . . Report 1 | . . . . . . . . . . 1 . . . . . . Prioritize 2 | . . . . . 1 . . . . 1 . . . . . . Fabnet 2 | . . . . . 1 . . . . 1 . . . . . . Overload 2 | . . . . . 2 . . . . . . . . . . . Repair Stations . | . . . . . . . . . . . . . . . . . Recycling Units . | . . . . . . . . . . . . . . . . . Scanalyzers . | . . . . . . . . . . . . . . . . . Garrison Access 7 | . . . . . . . . . . 5 . . 2 . . . Broadcast 1 | . . . . . . . . . . 1 . . . . . . Decoy 2 | . . . . . . . . . . 1 . . 1 . . . Redirect 2 | . . . . . . . . . . 1 . . 1 . . . Reprogram 1 | . . . . . . . . . . 1 . . . . . . Watchers 1 | . . . . . . . . . . 1 . . . . . . Data Cores Recovered 2 | . . . . . 2 . . . . . . . . . . . Used 1 | . . . . . 1 . . . . . . . . . . . Hacking Detections 36 | . 1 3 3 . 11 7 1 . . 4 . 1 3 1 . 1 Full Trace Events 4 | . . . . . 3 1 . . . . . . . . . . Feedback Events 1 | . . . . . 1 . . . . . . . . . . . Hackware Fried 1 | . . . . . 1 . . . . . . . . . . . Feedback Blocked . | . . . . . . . . . . . . . . . . . Robot Schematics Acquired 1 | . . . . . . . . . . . . . 1 . . . Robots Built . | . . . . . . . . . . . . . . . . . Authchips . | . . . . . . . . . . . . . . . . . Time . | . . . . . . . . . . . . . . . . . Total Robot Build Rating . | . . . . . . . . . . . . . . . . . Part Schematics Acquired 4 | . . . 1 . . 1 . . . 1 . . 1 . . . Parts Built 2 | . . . . . 2 . . . . . . . . . . . Authchips 1 | . . . . . 1 . . . . . . . . . . . Time 98 | . . . . . 98 . . . . . . . . . . . Total Part Build Rating 4 | . . . . . 4 . . . . . . . . . . . Parts Repaired . | . . . . . . . . . . . . . . . . . Time . | . . . . . . . . . . . . . . . . . Parts Recycled . | . . . . . . . . . . . . . . . . . Recycled Matter . | . . . . . . . . . . . . . . . . . Retrieved Matter . | . . . . . . . . . . . . . . . . . Retrieved Components 9 | . 9 . . . . . . . . . . . . . . . Parts Scanalyzed . | . . . . . . . . . . . . . . . . . Part Schematics Acquired . | . . . . . . . . . . . . . . . . . Parts Damaged . | . . . . . . . . . . . . . . . . . Bothacking | -11 -10 -9 -8 -7 -6 -6 -6 -6 -6 -5 -4 -3 -3 -2 -2 -1 ------------ Run | Yrd Mat Mat Mat Fac Fac Ext Cet Arc Hub Fac Fac Res Qua Res DSF Acc Used RIF Installer . | . . . . . . . . . . . . . . . . . Robots Hacked . | . . . . . . . . . . . . . . . . . Non-combat . | . . . . . . . . . . . . . . . . . Combat . | . . . . . . . . . . . . . . . . . Robot Hacks Applied . | . . . . . . . . . . . . . . . . . Relay Couplers Released . | . . . . . . . . . . . . . . . . . Fabnet Peak Effective % 3 | . . . . . . . . . . . 3 1 1 . . . Robots Rewired 19 | . . . . . . 19 . . . . . . . . . . Allies Hacked . | . . . . . . . . . . . . . . . . . Hacks Repelled . | . . . . . . . . . . . . . . . . . Allies | -11 -10 -9 -8 -7 -6 -6 -6 -6 -6 -5 -4 -3 -3 -2 -2 -1 -------- Run | Yrd Mat Mat Mat Fac Fac Ext Cet Arc Hub Fac Fac Res Qua Res DSF Acc Total Allies 44 | . . . . 3 1 27 5 . . 1 . . . . . 7 Largest Group 12 | . . . . 3 1 12 12 6 4 4 1 1 1 . . 7 Highest-Rated Group 538 | . . . . 93 26 471 538 538 384 384 10 10 10 . . 99 Highest-Rated Ally 159 | . . . . 31 26 159 159 134 96 96 10 10 10 . . 15 Total Orders 4 | . . . . . . 2 . . . . . . 2 . . . STAY 2 | . . . . . . 1 . . . . . . 1 . . . FOLLOW 2 | . . . . . . 1 . . . . . . 1 . . . Ally Attacks 268 | . . . . 32 . 98 68 28 8 11 . . . . . 23 Total Damage 7758 | . . . . 452 . 2217 2699 1177 230 517 . . . . . 466 Kills 43 | . . . . 2 . 15 18 4 1 2 . . . . . 1 Allies Corrupted . | . . . . . . . . . . . . . . . . . Allies Melted . | . . . . . . . . . . . . . . . . . Intel | -11 -10 -9 -8 -7 -6 -6 -6 -6 -6 -5 -4 -3 -3 -2 -2 -1 ------- Run | Yrd Mat Mat Mat Fac Fac Ext Cet Arc Hub Fac Fac Res Qua Res DSF Acc Robot Analysis Total 14 | . . . . . 2 4 . . . 1 3 . 4 . . . Derelict Logs Recovered . | . . . . . . . . . . . . . . . . . Drone Launches . | . . . . . . . . . . . . . . . . . Drone Recoveries . | . . . . . . . . . . . . . . . . . Exploration | -11 -10 -9 -8 -7 -6 -6 -6 -6 -6 -5 -4 -3 -3 -2 -2 -1 ------------- Run | Yrd Mat Mat Mat Fac Fac Ext Cet Arc Hub Fac Fac Res Qua Res DSF Acc Turns Passed 7915 | . 1606 1519 292 242 809 687 226 793 33 710 118 55 412 7 58 348 Spaces Moved 7726 | 1 601 688 220 383 1439 887 231 297 54 1189 163 112 737 18 107 599 Core 1027 | . . . 143 285 26 50 . . . . . . . . 60 463 Treads 1170 | . 405 688 77 . . . . . . . . . . . . . Legs 197 | 1 196 . . . . . . . . . . . . . . . Wheels . | . . . . . . . . . . . . . . . . . Hover 2010 | . . . . 98 . . . 152 54 1189 163 112 106 . . 136 Flight 3322 | . . . . . 1413 837 231 145 . . . . 631 18 47 . Fastest Speed 34 | 120 120 160 50 50 34 34 37 37 56 40 46 46 34 37 37 50 Average Speed 63 | 120 147 160 88 52 35 38 37 63 56 48 46 46 36 37 44 52 Slowest Speed 190 | 120 190 160 160 60 50 107 37 120 56 116 46 46 117 37 50 60 Overloaded Moves . | . . . . . . . . . . . . . . . . . Propulsion Burnouts . | . . . . . . . . . . . . . . . . . Robots Hopped 36 | . . . . . 15 14 1 . . . . . 6 . . . Cave-ins Triggered 1 | . . . . . . . . . . . . . 1 . . . Exploration Rate (%) 40 | 2 84 74 40 13 32 65 68 91 7 36 4 3 69 1 69 25 Regions Visited 16 Branch Regions 5 Pre-discovered Areas . | . . . . . . . . . . . . . . . . . Known Exits Taken 12 | . . . 1 1 1 1 1 1 1 1 1 1 1 1 . . Unknown Exits Taken 3 | 1 1 1 . . . . . . . . . . . . . . Scrap Searched . | . . . . . . . . . . . . . . . . . Spaces Dug 94 | . . . . . 20 45 . . . 17 7 . 5 . . . Terrain Destroyed 382 | . . . 29 . 47 127 . . . 38 7 . 5 . 22 107 Melee 50 | . . . . . 20 1 . . . 17 7 . 5 . . . Projectile . | . . . . . . . . . . . . . . . . . AOE 332 | . . . 29 . 27 126 . . . 21 . . . . 22 107 Terrain Rammed 3 | . . . . . . . . . . . . . . . 3 . Walls Destroyed . | . . . . . . . . . . . . . . . . . Machines Disabled 1 | . . . . . . . . . . . . . . . 1 . Actions | -11 -10 -9 -8 -7 -6 -6 -6 -6 -6 -5 -4 -3 -3 -2 -2 -1 --------- Run | Yrd Mat Mat Mat Fac Fac Ext Cet Arc Hub Fac Fac Res Qua Res DSF Acc Total 10061 | . 1174 927 285 410 1646 1188 358 817 57 1287 194 113 842 17 117 629 Wait 1434 | . 463 77 28 5 132 133 106 391 2 33 13 . 43 . . 8 Move 7648 | . 600 687 219 382 1410 865 228 296 53 1188 162 111 725 17 106 599 Hop 26 | . . . . . 13 7 1 . . . . . 5 . . . Pick Up 37 | . 8 10 . 1 4 2 1 1 . 3 1 . 5 . 1 . Fast Attach 108 | . 3 19 1 6 22 11 3 12 . 13 2 . 11 . 1 4 Attach 45 | . 2 5 3 4 6 3 1 . . 5 4 1 7 . 1 3 Detach 40 | . . 6 . 2 5 5 2 1 . 5 3 . 7 . 1 3 Swap 25 | . 6 2 3 . . 4 3 4 . 3 . . . . . . Drop 111 | . 8 24 8 2 10 11 5 10 . 14 2 . 12 . 3 2 Fire 288 | . 84 71 3 . 1 12 . 102 . 6 . . 3 . 1 5 Melee 161 | . . 26 20 8 43 9 8 . 2 17 7 1 20 . . . Ram 12 | . . . . . . . . . . . . . 4 . 3 5 Kick . | . . . . . . . . . . . . . . . . . Crush . | . . . . . . . . . . . . . . . . . Escape Stasis 55 | . . . . . . 55 . . . . . . . . . . Rewire 71 | . . . . . . 71 . . . . . . . . . . Trap . | . . . . . . . . . . . . . . . . . Miscellaneous . | . . . . . . . . . . . . . . . . . Route ------- -11/Scrapyard -10/Materials (discovered 4 exits: *Mat x2 / *Min / [*Sub]) -9/Materials (discovered 4 exits: *Mat x2 / *Min x2) -8/Materials (discovered 3 exits: *Fac x3) -7/Factory -6/Factory (discovered 8 exits: *Fac x4 / *Low x2 / *Ext x2) -6/Extension (discovered 2 exits: *Fac / *Cet) -6/Cetus (discovered 2 exits: *Fac / *Arc) -6/Archives (discovered 3 exits: *Fac / *Hub x2) -6/Hub_04(d) -5/Factory (discovered 6 exits: *Fac x4 / Upp x2) -4/Factory (discovered 7 exits: *Res x4 / Upp x2 / Arm) -3/Research (discovered 5 exits: Res x3 / *Qua x2) -3/Quarantine -2/Research (discovered 4 exits: Acc x3 / DSF) -2/DSF -1/Access History --------- Turn | Location | Event 1 | -11/Scrapyard | Discovered new exit (range 0) 1 | -11/Scrapyard | Entered Materials 19 | -10/Materials | Identified exit to Mines 313 | -10/Materials | Build established: Mutant 376 | -10/Materials | Core integrity fell below 50% 815 | -10/Materials | Core integrity fell below 20% 901 | -10/Materials | Discovered new exit (range 15) 1030 | -10/Materials | Discovered new exit (range 12) 1093 | -10/Materials | Discovered new exit (range 8) 1200 | -10/Materials | Derelicts attacked the area 1607 | -10/Materials | Entered another Materials area 1607 | -9/Materials | Evolved 2 slots: Utility x2 1767 | -9/Materials | Discovered new exit (range 12) 2102 | -9/Materials | Discovered new exit (range 16) 2241 | -9/Materials | Discovered new exit (range 8) 2593 | -9/Materials | Destroyed 9 combat bots 2729 | -9/Materials | Identified exit to Mines 2899 | -9/Materials | Build established: Gladiator 2946 | -9/Materials | Core integrity fell below 50% 2973 | -9/Materials | Discovered new exit (range 8) 3126 | -9/Materials | Entered another Materials area 3126 | -8/Materials | Evolved 2 slots: Utility x2 3363 | -8/Materials | Identified exit to Factory 3418 | -8/Materials | Entered Factory 3418 | -7/Factory | Evolved 2 slots: Utility x2 3602 | -7/Factory | Allied Derelicts emerged from ambush trap array 3614 | -7/Factory | Discovered new exit (range 16) 3655 | -7/Factory | Identified exit to Factory 3660 | -7/Factory | Entered another Factory area 3660 | -6/Factory | Evolved 2 slots: Utility x2 3682 | -6/Factory | Lost 7 parts (2n4u1w) 3787 | -6/Factory | Fabricated Imp. Flight Unit (x1) 3828 | -6/Factory | Build established: Hacker-Mutant 3838 | -6/Factory | Fabricated Imp. Flight Unit? 3849 | -6/Factory | Discovered new exit (range 10) 4010 | -6/Factory | Search patrols dispatched 4155 | -6/Factory | Identified exit to Lower Caves 4184 | -6/Factory | Identified exit to Factory 4369 | -6/Factory | Hacking Suite fried by hacking feedback 4402 | -6/Factory | Found Prototype Launcher 4402 | -6/Factory | Identified Rocket Array 4404 | -6/Factory | Found Rocket Array 4459 | -6/Factory | Identified exit to Extension 4459 | -6/Factory | Central database locked down 4469 | -6/Factory | Entered Extension 4667 | -6/Extension | Lost 7 allies 4793 | -6/Extension | Rescued a captive Derelict 4794 | -6/Extension | Rescued a captive Derelict 4870 | -6/Extension | Rescued a captive Derelict 4934 | -6/Extension | Lost 3 allies 5015 | -6/Extension | Rescued a captive Derelict 5016 | -6/Extension | Rescued a captive Derelict 5070 | -6/Extension | Rescued A7 5084 | -6/Extension | Rescued a captive Derelict 5085 | -6/Extension | Rescued a captive Derelict 5090 | -6/Extension | Central database locked down 5116 | -6/Extension | Discovered exit to Factory (range 12) 5117 | -6/Extension | Discovered new exit (range 6) 5120 | -6/Extension | Identified exit to Cetus 5156 | -6/Extension | Entered Cetus 5156 | -6/Cetus | Accompanied by 12 allies (A7) 5161 | -6/Cetus | Acquired a Cetus Manufacturing Module code from A7 5166 | -6/Cetus | Spotted Cetus Guard 5166 | -6/Cetus | Spotted Cetus Guard 5168 | -6/Cetus | Spotted Cetus Guard 5170 | -6/Cetus | Spotted Cetus Guard 5171 | -6/Cetus | Allies destroyed Cetus Guard 5187 | -6/Cetus | Allies destroyed Cetus Guard 5189 | -6/Cetus | Allies destroyed Cetus Guard 5193 | -6/Cetus | Allies destroyed Cetus Guard 5211 | -6/Cetus | Started Cetus Manufacturing Module 5219 | -6/Cetus | Lost 5 allies 5230 | -6/Cetus | Escorted A7 to Cetus Mainframe 5236 | -6/Cetus | Manufactured an Enhanced Grunt 5237 | -6/Cetus | Discovered new exit (range 15) 5261 | -6/Cetus | Manufactured an Enhanced Grunt 5278 | -6/Cetus | Spotted Cetus Guard 5283 | -6/Cetus | Spotted Cetus Guard 5286 | -6/Cetus | Manufactured an Enhanced Grunt 5288 | -6/Cetus | Spotted Cetus Guard 5302 | -6/Cetus | Allies destroyed Cetus Guard 5306 | -6/Cetus | Spotted Cetus Guard 5308 | -6/Cetus | Allies destroyed Cetus Guard 5311 | -6/Cetus | Manufactured an Enhanced Grunt 5314 | -6/Cetus | Discovered exit to Factory (range 16) 5321 | -6/Cetus | Allies destroyed Cetus Guard 5326 | -6/Cetus | Allies destroyed Cetus Guard 5327 | -6/Cetus | Met Revision 17 5335 | -6/Cetus | Lost 6 allies 5336 | -6/Cetus | Manufactured an Enhanced Grunt 5347 | -6/Cetus | Identified exit to Archives 5382 | -6/Cetus | Entered Archives 5382 | -6/Archives | Accompanied by 6 allies (A7) 5387 | -6/Archives | Received a hacking code to weaken MAIN.C 5418 | -6/Archives | Unable to access archive contents 5432 | -6/Archives | Discovered exit to Factory (range 15) 5779 | -6/Archives | Discovered new exit (range 14) 6021 | -6/Archives | Discovered new exit (range 16) 6140 | -6/Archives | Identified exit to Hub_04(d) 6175 | -6/Archives | Entered Hub_04(d) 6175 | -6/Hub_04(d) | Accompanied by 4 allies 6175 | -6/Hub_04(d) | Discovered exit to Factory (range 10) 6194 | -6/Hub_04(d) | Network Hub disabled 6194 | -6/Hub_04(d) | Network Hub disabled 6204 | -6/Hub_04(d) | Build established: Wizard-Mutant 6207 | -6/Hub_04(d) | Spotted Lightning 6208 | -6/Hub_04(d) | Entered Factory 6208 | -5/Factory | Accompanied by 4 allies 6208 | -5/Factory | Evolved 2 slots: Utility x2 6317 | -5/Factory | Lost 4 allies 6823 | -5/Factory | Identified exit to Factory 6823 | -5/Factory | Identified exit to Upper Caves 6918 | -5/Factory | Entered another Factory area 6918 | -4/Factory | Accompanied by 1 ally 6918 | -4/Factory | Evolved 2 slots: Utility x2 6971 | -4/Factory | Identified exit to Research 6971 | -4/Factory | Identified exit to Upper Caves 6971 | -4/Factory | Identified exit to Armory 7036 | -4/Factory | Entered Research 7036 | -3/Research | Accompanied by 1 ally 7036 | -3/Research | Evolved 2 slots: Power x1, Propulsion x1 7055 | -3/Research | Discovered new exit (range 11) 7074 | -3/Research | Identified exit to Quarantine 7074 | -3/Research | Identified exit to Research 7091 | -3/Research | Entered Quarantine 7091 | -3/Quarantine | Accompanied by 1 ally 7100 | -3/Quarantine | Found Alien Impact Weapon 7100 | -3/Quarantine | Identified Core Stripper 7251 | -3/Quarantine | Found Alien Artifact 7319 | -3/Quarantine | Found Alien Artifact 7319 | -3/Quarantine | Identified Phase Redirector 7366 | -3/Quarantine | Met incapacitated Sigix Warrior 7366 | -3/Quarantine | Lockdown squad dispatched 7431 | -3/Quarantine | Crushed by falling debris 7431 | -3/Quarantine | System corruption reached 10% 7441 | -3/Quarantine | Spotted Lightning 7441 | -3/Quarantine | Spotted Lightning 7441 | -3/Quarantine | Spotted Lightning 7479 | -3/Quarantine | Lost 8 parts (2n5u1w) 7482 | -3/Quarantine | Found Alien Artifact 7502 | -3/Quarantine | Identified Core Reset Matrix 7502 | -3/Quarantine | Identified Subatomic Replicator 7502 | -3/Quarantine | Used Core Reset Matrix 7503 | -3/Quarantine | Entered Research 7503 | -2/Research | Evolved 2 slots: Propulsion x1, Utility x1 7506 | -2/Research | Identified exit to Access 7510 | -2/Research | Identified exit to DSF 7510 | -2/Research | Entered DSF 7529 | -2/DSF | Lost 3 parts (3u) 7535 | -2/DSF | System corruption reached 10% 7536 | -2/DSF | Additional patrols routed to DSF 7560 | -2/DSF | Discovered exit to Access (range 15) 7568 | -2/DSF | Entered Access 7568 | -1/Access | Evolved 2 slots: Propulsion x2 7579 | -1/Access | Lost 6 parts (6u) 7816 | -1/Access | Spotted B-99 Colossus 7818 | -1/Access | Search patrols dispatched 7818 | -1/Access | Core integrity fell below 50% 7823 | -1/Access | Found Prototype Launcher 7823 | -1/Access | Identified Tactical Quantum Warhead 7837 | -1/Access | Emitted hypermatrix ping 7842 | -1/Access | Assembled emerged from beneath the floor 7846 | -1/Access | Build established: Mutant 7849 | -1/Access | Garrison activated, responded to threat 7854 | -1/Access | Found Prototype Processor 7854 | -1/Access | Identified Exp. Core Analyzer 7878 | -1/Access | Core integrity fell below 20% 7888 | -1/Access | Lost 5 allies 7916 | -1/Access | Destroyed by G-73 Enforcer with Phase Gun Last Messages --------------- 07849_ P-80 Master destroyed. 07850_ as-00409 knocked back. 07850_ Slug penetrates as-93146. 07850_ as-93146 destroyed. 07850_ Slug penetrates as-00409. 07854_ Acquired Prototype Processor. 07854_ Identified Exp. Core Analyzer. 07859_ Connecting with Terminal... 07867_ Connecting with Garrison Access... 07884_ Critical hit (Burn: +37). 07884_ Penetrated by Slug. 07884_ Slug penetrates Wall. 07887_ Penetrated by Slug. 07887_ Slug penetrates Wall. 07898_ Acquired 125 matter. 07912_ Anti-Orbital Battery disabled. 07912_ G-73 Enforcer destroyed. 07914_ Slug penetrates G-73 Enforcer. 07914_ Slug penetrates Wall. 07915_ G-73 Enforcer destroyed. Map ----- +----------------------------------------------------+ | ???????# # ## """ #???# | | ???????# # ## "F #???####### | | ???????# # ## """ #?????????? | | ???????# # ## ??"" #?????????? | | ???????# #"" ##????" #?????????? | | ???????# #"" #????? #?????????? | | ???????+ #"" #????? #?????????? | | ???????? ??? #????? * #?????????? | | ??????????? ??? #????? #?????????? | | ?????????????????? #?????#########?????????? | | ?????????????????? ??????????????????????????? | | ?????????????????? ????????????????????????????? | | ?????????????????????????????????????????????????? | | ?????????????????????????????????????????????????? | | ?????????????????????????????????????????????????? | | ?????????????????????????????????????????????????? | | ?????????????????????????????????????????????????? | | ?????????????????????????????????????????????????? | | ?????????????????????????????????????????????????? | | ?????????????????????????????????????????????????? | | #######??? ??????????????????????????????????????? | | #??? ??????????????????????????????????????? | | #??# #?????????????????????????????????????? | | #??# #?## ?????????????????????????????????? | | #??# #?# #####??????????????????????? | | #??# #?# @#??????????????????????? | | #??# #?# #??????????????????????? | | #### #??????????????????????? | | ] #??????????????????????? | | #??????????????????????? | | "" #??????????????????????? | | gg """" #??????????????????????? | | % """" #??????????????????????? | | """" #??????????????????????? | | #??????????????????????? | | ##### # #??????????????????????? | | #???# # #??????????????????????? | | #???# ##############??????????????????????? | | #???# #???????????????????????????????????? | | #???# #???????????????????????????????????? | | #???# #???????????????????????????????????? | | #???# #???????????????????????????????????? | | #???#########???????????????????????????????????? | | #???????????????????????????????????????????????? | | #???????????????????????????????????????????????? | | +#######?????????????????????????????????????????? | | #?????????????????????????????????????????? | | #?????????????????????????????????????????? | | #?????????????????????????????????????????? | | = #?????????????????????????????????????????? | +----------------------------------------------------+ Best States ------------- Heat Dissipation 54 Coolant Potential 120 Energy Generation 31 Energy Capacity 315 Matter Stores 300 Matter Capacity 300 Sight Range 22 Robot Scan Range 16 Terrain Scan Density 110 Additional Mass Support 12 Armor Coverage 375 Resistance: KI 30 Resistance: TH 25 Propulsion Shielding 33 Weapon Shielding 33 Evasion (%) 63 Melee Accuracy 40 Target Analysis 6 Core Analysis 8 Recoil Reduction 2 Salvage Targeting 3 Offensive Hacking 68 Defensive Hacking 34 Authchip Count 1 Item Schematics ----------------- None Robot Schematics ------------------ None Fabricated ------------ Imp. Flight Unit | x1 | -6/Factory | Authchip Imp. Flight Unit | x1 | -6/Factory Alien Tech Used ----------------- Core Stripper Phase Redirector Core Reset Matrix Achievements -------------- Alien Roots Ride The Lightning Challenges ------------ None Game ------ Seed MolecularGrapheneInitializer Manual? 0 Play Time 02:09:36 Cumulative 209.2 hours Start 2024.04.06 @ 19:37:22 End 2024.04.07 @ 13:32:19 Sessions 3 Manual Loads 0 Difficulty Rogue Special Mode None Game No. 211 Rogue 211 Adventurer 0 Explorer 0 Win Type - Total 4 Types 3/0/0/1/0/0/0/0/0 Lore% 67 Gallery% 77 Achievement% 62 Wizard Run 0 Options --------- Layout 1 ASCII 0 Keyboard 0 Movement Numpad Keybinds 0 Fullscreen 2 Font 24/Smallcaps Map View 50x35 Zoom Use 0% Tactical HUD 1 Map Filters NONE Filters NONE Steam 1 RUN: 43917aef-ff80-4393-9e23-eeaa0eb0e71c